Workbook

Sheet all results -->

Sheet most recent fuel
B1: Location | C1: Unit Details | G1: Fuel Use
A2: Unit | B2: American Samoa | C2: MW | G2: turbine | K2: engine generator
C3: 45 | D3: diesel | E3: 176356 | F3: MWh generation | G3: =E3*N60/1000/$O$53 -> 20322194.71 | H3: gallons ULSD
C4: 5 | D4: PV
B5: Northern Mariana Islands | C5: MW | G5: turbine | K5: engine generator
B6: Saipan | C6: 34.5 | D6: diesel/fuel oil | G6: 1623579 | H6: gallons ULSD
B7: Tinian | C7: 3 | D7: diesel/fuel oil | G7: 92815 | H7: gallons ULSD
B8: Rota | C8: 2 | D8: diesel/fuel oil | G8: 65386 | H8: gallons ULSD
B9: Guam | C9: MW | G9: turbine | K9: engine generator
A10: Cabras 1 | B10: base | C10: 66 | D10: diesel/fuel oil | G10: 1670.75 | H10: gallons ULSD | I10: 545881.36 | J10: gallons fuel oil
A11: Cabras 2 | B11: base | C11: 66 | D11: diesel/fuel oil | G11: 1738.95 | H11: gallons ULSD | I11: 267047.55 | J11: gallons fuel oil
A12: MEC 8 (IPP) | B12: base | C12: 44.2 | D12: diesel | G12: =437455.05-K12 -> 0 | H12: gallons ULSD | K12: 437455.05 | L12: gallons ULSD
A13: MEC 9 (IPP) | B13: base | C13: 44.2 | D13: diesel | G13: =443401.94-K13 -> 0 | H13: gallons ULSD | K13: 443401.94 | L13: gallons ULSD
A14: MDI Dsl | B14: peaking | C14: 10.6 | D14: diesel | K14: 10569.4 | L14: gallons ULSD
A15: Dededo CT #1 | B15: peaking | C15: 23 | D15: diesel | G15: 153817.51 | H15: gallons ULSD
A16: Dededo CT #2 | B16: peaking | C16: 22 | D16: diesel | G16: 152640.32 | H16: gallons ULSD
A17: Macheche CT | B17: peaking | C17: 22 | D17: diesel | G17: 105297.81 | H17: gallons ULSD
A18: Yigo CT | B18: peaking | C18: 22 | D18: diesel | G18: 87926.31 | H18: gallons ULSD
A19: Talofofo | B19: peaking | C19: 8.8 | D19: diesel | K19: 10473.18 | L19: gallons ULSD
A20: Yigo Diesels | B20: peaking | C20: 40 | D20: diesel | K20: 110480.53 | L20: gallons ULSD
A21: Tenjo | B21: peaking | C21: =4.4*6 -> 26.4 | D21: diesel | K21: 28184.66 | L21: gallons ULSD
A22: TEMES (IPP) (Piti 7) | B22: peaking | C22: 40 | D22: diesel | G22: 341849.78 | H22: gallons ULSD
B23: other | G23: =5582-K23 -> 0.37 | H23: gallons ULSD | K23: 5581.63 | L23: gallons ULSD
B24: Virgin Islands | C24: MW | G24: turbine | K24: engine generator
A25: 14 | B25: St. Thomas | C25: 15.1 | D25: diesel | E25: turbine | F25: 215 MWh diesel | G25: =214.5*18040/1000/$O$53 -> 27639.85714 | H25: gallons ULSD | O25: using 2022 values - most recent, and electricity split for some units is for 2022
A26: 15 | C26: 26.6 | D26: LPG & diesel | E26: turbine | F26: 4623 MWh diesel, 87111 LPG | G26: =4622.8*22767/1000/$O$53 -> 751766.34 | H26: gallons ULSD | I26: =87111.2*17388/1000/$N$53 -> 16553984.1 | J26: gallons LPG | O26: 387793.4346 | P26: barrels diesel, 2022 | S26: =O26*42 -> 16287324.25
A27: 23 | C27: 42 | D27: diesel | E27: turbine | F27: 89461 MWh diesel | G27: =89461.3*14688/1000/$O$53 -> 9385768.389 | H27: gallons ULSD | O27: 748634.9943 | P27: barrels LPG, 2022 | S27: =O27*42 -> 31442669.76
A28: 27 | C28: 26 | D28: diesel | E28: turbine | F28: 68269 MWh diesel | G28: =68269*12388/1000/$O$53 -> 6040831.229 | H28: gallons ULSD
A29: Wartsila 1 | C29: 7 | D29: LPG | E29: engine | F29: 48871 MWh LPG | M29: =48871*9552/1000/$N$53 -> 5101811.934 | N29: gallons LPG
A30: Wartsila 2 | C30: 7 | D30: LPG | E30: engine | F30: 48434 MWh LPG | M30: =48434.3*9552/1000/$N$53 -> 5056223.318 | N30: gallons LPG
A31: Wartsila 3 | C31: 7 | D31: LPG | E31: engine | F31: 44425 MWh LPG | M31: =44425.1*9552/1000/$N$53 -> 4637689.128 | N31: gallons LPG
A32: Wartsila 4 | C32: 9 | D32: LPG & diesel | E32: engine
A33: Wartsila 5 | C33: 9 | D33: LPG & diesel | E33: engine
A34: Wartsila 6 | C34: 9 | D34: LPG & diesel | E34: engine
A35: Wartsila 7 | C35: 9 | D35: LPG & diesel | E35: engine
A36: 17 | B36: St. Croix | C36: 21.9 | D36: LPG & diesel | E36: turbine | F36: 6529 MWh diesel, 20003 LPG | G36: =6529.3*19130/1000/$O$53 -> 892182.2071 | H36: gallons ULSD | I36: =20002.7*17076/1000/$N$53 -> 3732962.898 | J36: gallons LPG | O36: 105667.6944 | P36: barrels diesel, 2022 | S36: =O36*42 -> 4438043.166
A37: 19 | C37: 24.5 | D37: diesel | E37: turbine | F37: 8006 MWh diesel | G37: =8006.2*21742/1000/$O$53 -> 1243362.86 | H37: gallons ULSD | O37: 919263.0476 | P37: barrels LPG, 2022 | S37: =O37*42 -> 38609048
A38: 20 | C38: 24.5 | D38: LPG & diesel | E38: turbine | F38: 16976 MWh diesel, 20003 LPG | G38: =16975.9*19138/1000/$O$53 -> 2320605.53 | H38: gallons ULSD | I38: =83100.6*20493/1000/$N$53 -> 18611809.79 | J38: gallons LPG
A39: Aggreko | C39: =18*1.1 -> 19.8 | D39: LPG | E39: engine | F39: 141175 MWh LPG | M39: =141174.8*10515/1000/$N$53 -> 16223530.3 | N39: gallons LPG
G40: Gal
G41: =SUM(G25:G35) -> 16206005.81 | I41: =SUM(I25:I35,M25:M35) -> 31349708.49
G42: =SUM(G36:G39) -> 4456150.597 | I42: =SUM(I36:I39,M36:M39) -> 38568302.98
M43: Notes:
M44: AP-42 chapter 3 (all appears to be internal combustion) only has diesel or gasoline engines, no diesel turbines or LPG engine/turbine
N45: chapter 1 (external combustion) has propane boilers -> may not represent turbine correctly
M46: technology type not stated, using assumption
M47: internal combustion generators (or combustion turbine)
M48: internal combustion uses engines and turbines, external combustion is boilers and heaters
N49: external can be steam/electric generating plants
M50: not commissioned yet, starting sometime 2023
N51: LPG | O51: No. 2 diesel | P51: CNG
M52: HHV (Btu/gallon) | N52: 91500 | O52: 140000 | P52: 138700 | Q52: https://www.bts.gov/content/energy-consumption-mode-transportation
M53: MMBtu/gal | N53: =N52/1000000 -> 0.0915 | O53: =O52/1000000 -> 0.14 | P53: =P52/1000000 -> 0.1387
M54: ----------------------------------------------------------------
M55: Weighted average diesel turbine, higher for closer MW size
M56: MW | N56: heat rate | O56: close to American Samoa size
M57: 26.6 | N57: 22767 | O57: 1
M58: 42 | N58: 14688 | O58: 2
M59: 26 | N59: 12388 | O59: 1
N60: =SUMPRODUCT(N57:N59,O57:O59)/SUM(O57:O59) -> 16132.75

Sheet emissions
B1: AP-42 Chapter 3.3 | E1: AP-42 Chapter 3.4 | H1: AP-42 Chapter 3.1 | K1: South Coast AQMD | M1: AP-42 Chapter 3.1 | U1: tons/year pollutant emissions (uncontrolled)
B2: <600 hp, diesel ind. Engine | E2: > 600 hp, diesel ind. Engine | H2: diesel turbine | K2: LPG turbine/engine | M2: natural gas turbine | Q2: American Samoa | R2: MW | S2: fuel | T2: tech | U2: NOx | V2: CO | W2: SO2 | X2: PM* | Y2: PM10 | Z2: PM2.5 | AA2: VOC/TOC
B3: PTE | C3: controlled | E3: PTE | F3: controlled | H3: PTE | I3: controlled | M3: PTE | N3: controlled | R3: 45 | S3: diesel | T3: turbine | U3: =$H$14*('most recent fuel'!$G3/1000)/2000 -> 1251.847194 | V3: =$H$15*('most recent fuel'!$G3/1000)/2000 -> 4.694426977 | W3: =$H$16*('most recent fuel'!$G3/1000)/2000 -> 2.155168749 | X3: =$H$17*('most recent fuel'!$G3/1000)/2000 -> 17.07064355 | Y3: =$H$17*('most recent fuel'!$G3/1000)/2000 -> 17.07064355 | Z3: =$H$17*('most recent fuel'!$G3/1000)/2000 -> 17.07064355 | AA3: =$H$20*('most recent fuel'!$G3/1000)/2000 -> 0.5832469881
B4: lb/MMBtu | E4: lb/MMBtu | H4: lb/MMBtu | K4: lb/1000 gal | M4: lb/MMBtu | Q4: Northern Mariana Islands
A5: NOx | B5: 4.41 | E5: 3.2 | F5: 1.9 | H5: 0.88 | I5: 0.24 | K5: 139 | M5: 0.32 | N5: 0.13 | Q5: Saipan | R5: 34.5 | S5: diesel/fuel oil | T5: turbine | U5: =($H$14*('most recent fuel'!$G6/1000)+$K$14*('most recent fuel'!$I6/1000))/2000 -> 100.0124664 | V5: =($H$15*('most recent fuel'!$G6/1000)+$K$15*('most recent fuel'!$I6/1000))/2000 -> 0.375046749 | W5: =($H$16*('most recent fuel'!$G6/1000)+$K$16*('most recent fuel'!$I6/1000))/2000 -> 0.1721805529 | X5: =($H$17*('most recent fuel'!$G6/1000)+$K$17*('most recent fuel'!$I6/1000))/2000 -> 1.36380636 | Y5: =($H$17*('most recent fuel'!$G6/1000)+$K$17*('most recent fuel'!$I6/1000))/2000 -> 1.36380636 | Z5: =($H$17*('most recent fuel'!$G6/1000)+$K$17*('most recent fuel'!$I6/1000))/2000 -> 1.36380636 | AA5: =($H$20*('most recent fuel'!$G6/1000)+$K$20*('most recent fuel'!$I6/1000))/2000 -> 0.0465967173
A6: CO | B6: 0.95 | E6: 0.85 | H6: 0.0033 | I6: 0.076 | K6: 129 | M6: 0.082 | N6: 0.03 | Q6: Tinian | R6: 3 | S6: diesel/fuel oil | T6: turbine | U6: =($H$14*('most recent fuel'!$G7/1000)+$K$14*('most recent fuel'!$I7/1000))/2000 -> 5.717404 | V6: =($H$15*('most recent fuel'!$G7/1000)+$K$15*('most recent fuel'!$I7/1000))/2000 -> 0.021440265 | W6: =($H$16*('most recent fuel'!$G7/1000)+$K$16*('most recent fuel'!$I7/1000))/2000 -> 0.00984303075 | X6: =($H$17*('most recent fuel'!$G7/1000)+$K$17*('most recent fuel'!$I7/1000))/2000 -> 0.0779646 | Y6: =($H$17*('most recent fuel'!$G7/1000)+$K$17*('most recent fuel'!$I7/1000))/2000 -> 0.0779646 | Z6: =($H$17*('most recent fuel'!$G7/1000)+$K$17*('most recent fuel'!$I7/1000))/2000 -> 0.0779646 | AA6: =($H$20*('most recent fuel'!$G7/1000)+$K$20*('most recent fuel'!$I7/1000))/2000 -> 0.0026637905
A7: SO2 | B7: 0.29 | E7: =1.01*B31 -> 0.001515 | H7: =1.01*B31 -> 0.001515 | K7: 0.35 | M7: 0.0034 | Q7: Rota | R7: 2 | S7: diesel/fuel oil | T7: turbine | U7: =($H$14*('most recent fuel'!$G8/1000)+$K$14*('most recent fuel'!$I8/1000))/2000 -> 4.0277776 | V7: =($H$15*('most recent fuel'!$G8/1000)+$K$15*('most recent fuel'!$I8/1000))/2000 -> 0.015104166 | W7: =($H$16*('most recent fuel'!$G8/1000)+$K$16*('most recent fuel'!$I8/1000))/2000 -> 0.0069341853 | X7: =($H$17*('most recent fuel'!$G8/1000)+$K$17*('most recent fuel'!$I8/1000))/2000 -> 0.05492424 | Y7: =($H$17*('most recent fuel'!$G8/1000)+$K$17*('most recent fuel'!$I8/1000))/2000 -> 0.05492424 | Z7: =($H$17*('most recent fuel'!$G8/1000)+$K$17*('most recent fuel'!$I8/1000))/2000 -> 0.05492424 | AA7: =($H$20*('most recent fuel'!$G8/1000)+$K$20*('most recent fuel'!$I8/1000))/2000 -> 0.0018765782
A8: PM* | B8: 0.31 | E8: 0.062 | H8: 0.012 | K8: 5 | M8: 0.0066 | Q8: Guam
A9: PM10 | B9: -- | E9: 0.0496 | P9: Cabras 1 | Q9: base | R9: 66 | S9: diesel/fuel oil | T9: turbine | U9: =($H$14*('most recent fuel'!$G10/1000+'most recent fuel'!$I10/1000))/2000 -> 33.72920998 | V9: =($H$15*('most recent fuel'!$G10/1000+'most recent fuel'!$I10/1000))/2000 -> 0.1264845374 | W9: =($H$16*('most recent fuel'!$G10/1000+'most recent fuel'!$I10/1000))/2000 -> 0.05806790127 | X9: =($H$17*('most recent fuel'!$G10/1000+'most recent fuel'!$I10/1000))/2000 -> 0.4599437724 | Y9: =($H$17*('most recent fuel'!$G10/1000+'most recent fuel'!$I10/1000))/2000 -> 0.4599437724 | Z9: =($H$17*('most recent fuel'!$G10/1000+'most recent fuel'!$I10/1000))/2000 -> 0.4599437724 | AA9: =($H$20*('most recent fuel'!$G10/1000+'most recent fuel'!$I10/1000))/2000 -> 0.01571474556
A10: PM2.5 | B10: -- | E10: 0.0479 | P10: Cabras 2 | Q10: base | R10: 66 | S10: diesel/fuel oil | T10: turbine | U10: =($H$14*('most recent fuel'!$G11/1000+'most recent fuel'!$I11/1000))/2000 -> 16.5572484 | V10: =($H$15*('most recent fuel'!$G11/1000+'most recent fuel'!$I11/1000))/2000 -> 0.0620896815 | W10: =($H$16*('most recent fuel'!$G11/1000+'most recent fuel'!$I11/1000))/2000 -> 0.02850480832 | X10: =($H$17*('most recent fuel'!$G11/1000+'most recent fuel'!$I11/1000))/2000 -> 0.22578066 | Y10: =($H$17*('most recent fuel'!$G11/1000+'most recent fuel'!$I11/1000))/2000 -> 0.22578066 | Z10: =($H$17*('most recent fuel'!$G11/1000+'most recent fuel'!$I11/1000))/2000 -> 0.22578066 | AA10: =($H$20*('most recent fuel'!$G11/1000+'most recent fuel'!$I11/1000))/2000 -> 0.00771417255
A11: VOC/TOC | B11: 0.36 | E11: =0.09*91% -> 0.0819 | H11: 0.00041 | K11: 83 | M11: 0.0021 | P11: MEC 8 (IPP) | Q11: base | R11: 44.2 | S11: diesel | T11: engine | U11: =($E$14*('most recent fuel'!$K12/1000)+$K$14*('most recent fuel'!$M12/1000))/2000 -> 97.9899312 | V11: =($E$15*('most recent fuel'!$K12/1000)+$K$15*('most recent fuel'!$M12/1000))/2000 -> 26.02857547 | W11: =($E$16*('most recent fuel'!$K12/1000)+$K$16*('most recent fuel'!$M12/1000))/2000 -> 0.04639210805 | X11: =($E$17*('most recent fuel'!$K12/1000)+$K$17*('most recent fuel'!$M12/1000))/2000 -> 1.898554917 | Y11: =($E$18*('most recent fuel'!$K12/1000)+$K$17*('most recent fuel'!$M12/1000))/2000 -> 1.518843934 | Z11: =($E$19*('most recent fuel'!$K12/1000)+$K$17*('most recent fuel'!$M12/1000))/2000 -> 1.466786783 | AA11: =($E$20*('most recent fuel'!$K12/1000)+$K$20*('most recent fuel'!$M12/1000))/2000 -> 2.507929802
P12: MEC 9 (IPP) | Q12: base | R12: 44.2 | S12: diesel | T12: engine | U12: =($E$14*('most recent fuel'!$K13/1000)+$K$14*('most recent fuel'!$M13/1000))/2000 -> 99.32203456 | V12: =($E$15*('most recent fuel'!$K13/1000)+$K$15*('most recent fuel'!$M13/1000))/2000 -> 26.38241543 | W12: =($E$16*('most recent fuel'!$K13/1000)+$K$16*('most recent fuel'!$M13/1000))/2000 -> 0.04702277574 | X12: =($E$17*('most recent fuel'!$K13/1000)+$K$17*('most recent fuel'!$M13/1000))/2000 -> 1.92436442 | Y12: =($E$18*('most recent fuel'!$K13/1000)+$K$17*('most recent fuel'!$M13/1000))/2000 -> 1.539491536 | Z12: =($E$19*('most recent fuel'!$K13/1000)+$K$17*('most recent fuel'!$M13/1000))/2000 -> 1.486726705 | AA12: =($E$20*('most recent fuel'!$K13/1000)+$K$20*('most recent fuel'!$M13/1000))/2000 -> 2.542023322
B13: N/A | E13: lb/1000 gal | H13: lb/1000 gal | K13: lb/1000 gal | M13: lb/1000 gal | P13: MDI Dsl | Q13: peaking | R13: 10.6 | S13: diesel | T13: engine | U13: =($E$14*('most recent fuel'!$K14/1000)+$K$14*('most recent fuel'!$M14/1000))/2000 -> 2.3675456 | V13: =($E$15*('most recent fuel'!$K14/1000)+$K$15*('most recent fuel'!$M14/1000))/2000 -> 0.6288793 | W13: =($E$16*('most recent fuel'!$K14/1000)+$K$16*('most recent fuel'!$M14/1000))/2000 -> 0.00112088487 | X13: =($E$17*('most recent fuel'!$K14/1000)+$K$17*('most recent fuel'!$M14/1000))/2000 -> 0.045871196 | Y13: =($E$18*('most recent fuel'!$K14/1000)+$K$17*('most recent fuel'!$M14/1000))/2000 -> 0.0366969568 | Z13: =($E$19*('most recent fuel'!$K14/1000)+$K$17*('most recent fuel'!$M14/1000))/2000 -> 0.0354391982 | AA13: =($E$20*('most recent fuel'!$K14/1000)+$K$20*('most recent fuel'!$M14/1000))/2000 -> 0.0605943702
A14: NOx | E14: =E5*'most recent fuel'!$O$52/1000 -> 448 | F14: =F5*'most recent fuel'!$O$52/1000 -> 266 | H14: =H5*'most recent fuel'!$O$52/1000 -> 123.2 | I14: =I5*'most recent fuel'!$O$52/1000 -> 33.6 | K14: =K5 -> 139 | M14: =M5*'most recent fuel'!$P$52/1000 -> 44.384 | N14: =N5*'most recent fuel'!$P$52/1000 -> 18.031 | P14: Dededo CT #1 | Q14: peaking | R14: 23 | S14: diesel | T14: turbine | U14: =($H$14*('most recent fuel'!$G15/1000)+$K$14*('most recent fuel'!$I15/1000))/2000 -> 9.475158616 | V14: =($H$15*('most recent fuel'!$G15/1000)+$K$15*('most recent fuel'!$I15/1000))/2000 -> 0.03553184481 | W14: =($H$16*('most recent fuel'!$G15/1000)+$K$16*('most recent fuel'!$I15/1000))/2000 -> 0.01631234694 | X14: =($H$17*('most recent fuel'!$G15/1000)+$K$17*('most recent fuel'!$I15/1000))/2000 -> 0.1292067084 | Y14: =($H$17*('most recent fuel'!$G15/1000)+$K$17*('most recent fuel'!$I15/1000))/2000 -> 0.1292067084 | Z14: =($H$17*('most recent fuel'!$G15/1000)+$K$17*('most recent fuel'!$I15/1000))/2000 -> 0.1292067084 | AA14: =($H$20*('most recent fuel'!$G15/1000)+$K$20*('most recent fuel'!$I15/1000))/2000 -> 0.004414562537
A15: CO | E15: =E6*'most recent fuel'!$O$52/1000 -> 119 | H15: =H6*'most recent fuel'!$O$52/1000 -> 0.462 | I15: =I6*'most recent fuel'!$O$52/1000 -> 10.64 | K15: 129 | M15: =M6*'most recent fuel'!$P$52/1000 -> 11.3734 | N15: =N6*'most recent fuel'!$P$52/1000 -> 4.161 | P15: Dededo CT #2 | Q15: peaking | R15: 22 | S15: diesel | T15: turbine | U15: =($H$14*('most recent fuel'!$G16/1000)+$K$14*('most recent fuel'!$I16/1000))/2000 -> 9.402643712 | V15: =($H$15*('most recent fuel'!$G16/1000)+$K$15*('most recent fuel'!$I16/1000))/2000 -> 0.03525991392 | W15: =($H$16*('most recent fuel'!$G16/1000)+$K$16*('most recent fuel'!$I16/1000))/2000 -> 0.01618750594 | X15: =($H$17*('most recent fuel'!$G16/1000)+$K$17*('most recent fuel'!$I16/1000))/2000 -> 0.1282178688 | Y15: =($H$17*('most recent fuel'!$G16/1000)+$K$17*('most recent fuel'!$I16/1000))/2000 -> 0.1282178688 | Z15: =($H$17*('most recent fuel'!$G16/1000)+$K$17*('most recent fuel'!$I16/1000))/2000 -> 0.1282178688 | AA15: =($H$20*('most recent fuel'!$G16/1000)+$K$20*('most recent fuel'!$I16/1000))/2000 -> 0.004380777184
A16: SO2 | E16: =E7*'most recent fuel'!$O$52/1000 -> 0.2121 | H16: =H7*'most recent fuel'!$O$52/1000 -> 0.2121 | K16: 0.35 | M16: =M7*'most recent fuel'!$P$52/1000 -> 0.47158 | P16: Macheche CT | Q16: peaking | R16: 22 | S16: diesel | T16: turbine | U16: =($H$14*('most recent fuel'!$G17/1000)+$K$14*('most recent fuel'!$I17/1000))/2000 -> 6.486345096 | V16: =($H$15*('most recent fuel'!$G17/1000)+$K$15*('most recent fuel'!$I17/1000))/2000 -> 0.02432379411 | W16: =($H$16*('most recent fuel'!$G17/1000)+$K$16*('most recent fuel'!$I17/1000))/2000 -> 0.01116683275 | X16: =($H$17*('most recent fuel'!$G17/1000)+$K$17*('most recent fuel'!$I17/1000))/2000 -> 0.0884501604 | Y16: =($H$17*('most recent fuel'!$G17/1000)+$K$17*('most recent fuel'!$I17/1000))/2000 -> 0.0884501604 | Z16: =($H$17*('most recent fuel'!$G17/1000)+$K$17*('most recent fuel'!$I17/1000))/2000 -> 0.0884501604 | AA16: =($H$20*('most recent fuel'!$G17/1000)+$K$20*('most recent fuel'!$I17/1000))/2000 -> 0.003022047147
A17: PM* | E17: =E8*'most recent fuel'!$O$52/1000 -> 8.68 | H17: =H8*'most recent fuel'!$O$52/1000 -> 1.68 | K17: 5 | M17: =M8*'most recent fuel'!$P$52/1000 -> 0.91542 | P17: Yigo CT | Q17: peaking | R17: 22 | S17: diesel | T17: turbine | U17: =($H$14*('most recent fuel'!$G18/1000)+$K$14*('most recent fuel'!$I18/1000))/2000 -> 5.416260696 | V17: =($H$15*('most recent fuel'!$G18/1000)+$K$15*('most recent fuel'!$I18/1000))/2000 -> 0.02031097761 | W17: =($H$16*('most recent fuel'!$G18/1000)+$K$16*('most recent fuel'!$I18/1000))/2000 -> 0.009324585176 | X17: =($H$17*('most recent fuel'!$G18/1000)+$K$17*('most recent fuel'!$I18/1000))/2000 -> 0.0738581004 | Y17: =($H$17*('most recent fuel'!$G18/1000)+$K$17*('most recent fuel'!$I18/1000))/2000 -> 0.0738581004 | Z17: =($H$17*('most recent fuel'!$G18/1000)+$K$17*('most recent fuel'!$I18/1000))/2000 -> 0.0738581004 | AA17: =($H$20*('most recent fuel'!$G18/1000)+$K$20*('most recent fuel'!$I18/1000))/2000 -> 0.002523485097
A18: PM10 | E18: =E9*'most recent fuel'!$O$52/1000 -> 6.944 | H18: =H9*'most recent fuel'!$O$52/1000 -> 0 | K18: 0 | M18: =M9*'most recent fuel'!$P$52/1000 -> 0 | P18: Talofofo | Q18: peaking | R18: 8.8 | S18: diesel | T18: engine | U18: =($E$14*('most recent fuel'!$K19/1000)+$K$14*('most recent fuel'!$M19/1000))/2000 -> 2.34599232 | V18: =($E$15*('most recent fuel'!$K19/1000)+$K$15*('most recent fuel'!$M19/1000))/2000 -> 0.62315421 | W18: =($E$16*('most recent fuel'!$K19/1000)+$K$16*('most recent fuel'!$M19/1000))/2000 -> 0.001110680739 | X18: =($E$17*('most recent fuel'!$K19/1000)+$K$17*('most recent fuel'!$M19/1000))/2000 -> 0.0454536012 | Y18: =($E$18*('most recent fuel'!$K19/1000)+$K$17*('most recent fuel'!$M19/1000))/2000 -> 0.03636288096 | Z18: =($E$19*('most recent fuel'!$K19/1000)+$K$17*('most recent fuel'!$M19/1000))/2000 -> 0.03511657254 | AA18: =($E$20*('most recent fuel'!$K19/1000)+$K$20*('most recent fuel'!$M19/1000))/2000 -> 0.06004274094
A19: PM2.5 | E19: =E10*'most recent fuel'!$O$52/1000 -> 6.706 | H19: =H10*'most recent fuel'!$O$52/1000 -> 0 | K19: 0 | M19: =M10*'most recent fuel'!$P$52/1000 -> 0 | P19: Yigo Diesels | Q19: peaking | R19: 40 | S19: diesel | T19: engine | U19: =($E$14*('most recent fuel'!$K20/1000)+$K$14*('most recent fuel'!$M20/1000))/2000 -> 24.74763872 | V19: =($E$15*('most recent fuel'!$K20/1000)+$K$15*('most recent fuel'!$M20/1000))/2000 -> 6.573591535 | W19: =($E$16*('most recent fuel'!$K20/1000)+$K$16*('most recent fuel'!$M20/1000))/2000 -> 0.01171646021 | X19: =($E$17*('most recent fuel'!$K20/1000)+$K$17*('most recent fuel'!$M20/1000))/2000 -> 0.4794855002 | Y19: =($E$18*('most recent fuel'!$K20/1000)+$K$17*('most recent fuel'!$M20/1000))/2000 -> 0.3835884002 | Z19: =($E$19*('most recent fuel'!$K20/1000)+$K$17*('most recent fuel'!$M20/1000))/2000 -> 0.3704412171 | AA19: =($E$20*('most recent fuel'!$K20/1000)+$K$20*('most recent fuel'!$M20/1000))/2000 -> 0.6333848785
A20: VOC/TOC | E20: =E11*'most recent fuel'!$O$52/1000 -> 11.466 | H20: =H11*'most recent fuel'!$O$52/1000 -> 0.0574 | K20: 83 | M20: =M11*'most recent fuel'!$P$52/1000 -> 0.29127 | P20: Tenjo | Q20: peaking | R20: =4.4*6 -> 26.4 | S20: diesel | T20: engine | U20: =($E$14*('most recent fuel'!$K21/1000)+$K$14*('most recent fuel'!$M21/1000))/2000 -> 6.31336384 | V20: =($E$15*('most recent fuel'!$K21/1000)+$K$15*('most recent fuel'!$M21/1000))/2000 -> 1.67698727 | W20: =($E$16*('most recent fuel'!$K21/1000)+$K$16*('most recent fuel'!$M21/1000))/2000 -> 0.002988983193 | X20: =($E$17*('most recent fuel'!$K21/1000)+$K$17*('most recent fuel'!$M21/1000))/2000 -> 0.1223214244 | Y20: =($E$18*('most recent fuel'!$K21/1000)+$K$17*('most recent fuel'!$M21/1000))/2000 -> 0.09785713952 | Z20: =($E$19*('most recent fuel'!$K21/1000)+$K$17*('most recent fuel'!$M21/1000))/2000 -> 0.09450316498 | AA20: =($E$20*('most recent fuel'!$K21/1000)+$K$20*('most recent fuel'!$M21/1000))/2000 -> 0.1615826558
P21: TEMES (IPP) (Piti 7) | Q21: peaking | R21: 40 | S21: diesel | T21: turbine | U21: =($H$14*('most recent fuel'!$G22/1000)+$K$14*('most recent fuel'!$I22/1000))/2000 -> 21.05794645 | V21: =($H$15*('most recent fuel'!$G22/1000)+$K$15*('most recent fuel'!$I22/1000))/2000 -> 0.07896729918 | W21: =($H$16*('most recent fuel'!$G22/1000)+$K$16*('most recent fuel'!$I22/1000))/2000 -> 0.03625316917 | X21: =($H$17*('most recent fuel'!$G22/1000)+$K$17*('most recent fuel'!$I22/1000))/2000 -> 0.2871538152 | Y21: =($H$17*('most recent fuel'!$G22/1000)+$K$17*('most recent fuel'!$I22/1000))/2000 -> 0.2871538152 | Z21: =($H$17*('most recent fuel'!$G22/1000)+$K$17*('most recent fuel'!$I22/1000))/2000 -> 0.2871538152 | AA21: =($H$20*('most recent fuel'!$G22/1000)+$K$20*('most recent fuel'!$I22/1000))/2000 -> 0.009811088686
Q22: other | T22: engine | U22: =($E$14*('most recent fuel'!$K23/1000)+$K$14*('most recent fuel'!$M23/1000))/2000 -> 1.25028512 | V22: =($E$15*('most recent fuel'!$K23/1000)+$K$15*('most recent fuel'!$M23/1000))/2000 -> 0.332106985 | W22: =($E$16*('most recent fuel'!$K23/1000)+$K$16*('most recent fuel'!$M23/1000))/2000 -> 0.0005919318615 | X22: =($E$17*('most recent fuel'!$K23/1000)+$K$17*('most recent fuel'!$M23/1000))/2000 -> 0.0242242742 | Y22: =($E$18*('most recent fuel'!$K23/1000)+$K$17*('most recent fuel'!$M23/1000))/2000 -> 0.01937941936 | Z22: =($E$19*('most recent fuel'!$K23/1000)+$K$17*('most recent fuel'!$M23/1000))/2000 -> 0.01871520539 | AA22: =($E$20*('most recent fuel'!$K23/1000)+$K$20*('most recent fuel'!$M23/1000))/2000 -> 0.03199948479
B23: Notes: | Q23: Virgin Islands
B24: Potential alternate EF for propane/LPG engine or turbine, diesel (micro?) turbine | P24: 14 | Q24: St. Thomas | R24: 15.1 | S24: diesel | T24: turbine | U24: =($H$14*('most recent fuel'!$G25/1000)+$M$14*('most recent fuel'!$I25/1000))/2000 -> 1.7026152 | V24: =($H$15*('most recent fuel'!$G25/1000)+$M$15*('most recent fuel'!$I25/1000))/2000 -> 0.006384807 | W24: =($H$16*('most recent fuel'!$G25/1000)+$M$16*('most recent fuel'!$I25/1000))/2000 -> 0.00293120685 | X24: =($H$17*('most recent fuel'!$G25/1000)+$M$17*('most recent fuel'!$I25/1000))/2000 -> 0.02321748 | Y24: =($H$17*('most recent fuel'!$G25/1000)+$M$17*('most recent fuel'!$I25/1000))/2000 -> 0.02321748 | Z24: =($H$17*('most recent fuel'!$G25/1000)+$M$17*('most recent fuel'!$I25/1000))/2000 -> 0.02321748 | AA24: =($H$20*('most recent fuel'!$G25/1000)+$M$20*('most recent fuel'!$I25/1000))/2000 -> 0.0007932639
B25: https://www.aqmd.gov/docs/default-source/planning/annual-emission-reporting/combustion-emission-factors-2021.pdf | P25: 15 | R25: 26.6 | S25: LPG & diesel | T25: turbine | U25: =($H$14*('most recent fuel'!$G26/1000)+$M$14*('most recent fuel'!$I26/1000))/2000 -> 413.6748218 | V25: =($H$15*('most recent fuel'!$G26/1000)+$M$15*('most recent fuel'!$I26/1000))/2000 -> 94.31119943 | W25: =($H$16*('most recent fuel'!$G26/1000)+$M$16*('most recent fuel'!$I26/1000))/2000 -> 3.982988732 | X25: =($H$17*('most recent fuel'!$G26/1000)+$M$17*('most recent fuel'!$I26/1000))/2000 -> 8.20840779 | Y25: =($H$17*('most recent fuel'!$G26/1000)+$M$17*('most recent fuel'!$I26/1000))/2000 -> 8.20840779 | Z25: =($H$17*('most recent fuel'!$G26/1000)+$M$17*('most recent fuel'!$I26/1000))/2000 -> 8.20840779 | AA25: =($H$20*('most recent fuel'!$G26/1000)+$M$20*('most recent fuel'!$I26/1000))/2000 -> 2.432415169
B26: https://www.aqmd.gov/docs/default-source/planning/annual-emission-reporting/default-combustion-emission-factors.pdf?sfvrsn=12 | P26: 23 | R26: 42 | S26: diesel | T26: turbine | U26: =($H$14*('most recent fuel'!$G27/1000)+$M$14*('most recent fuel'!$I27/1000))/2000 -> 578.1633327 | V26: =($H$15*('most recent fuel'!$G27/1000)+$M$15*('most recent fuel'!$I27/1000))/2000 -> 2.168112498 | W26: =($H$16*('most recent fuel'!$G27/1000)+$M$16*('most recent fuel'!$I27/1000))/2000 -> 0.9953607376 | X26: =($H$17*('most recent fuel'!$G27/1000)+$M$17*('most recent fuel'!$I27/1000))/2000 -> 7.884045446 | Y26: =($H$17*('most recent fuel'!$G27/1000)+$M$17*('most recent fuel'!$I27/1000))/2000 -> 7.884045446 | Z26: =($H$17*('most recent fuel'!$G27/1000)+$M$17*('most recent fuel'!$I27/1000))/2000 -> 7.884045446 | AA26: =($H$20*('most recent fuel'!$G27/1000)+$M$20*('most recent fuel'!$I27/1000))/2000 -> 0.2693715528
C27: https://www.epa.gov/natural-gas-star-program/engine-exhaust | P27: 27 | R27: 26 | S27: diesel | T27: turbine | U27: =($H$14*('most recent fuel'!$G28/1000)+$M$14*('most recent fuel'!$I28/1000))/2000 -> 372.1152037 | V27: =($H$15*('most recent fuel'!$G28/1000)+$M$15*('most recent fuel'!$I28/1000))/2000 -> 1.395432014 | W27: =($H$16*('most recent fuel'!$G28/1000)+$M$16*('most recent fuel'!$I28/1000))/2000 -> 0.6406301518 | X27: =($H$17*('most recent fuel'!$G28/1000)+$M$17*('most recent fuel'!$I28/1000))/2000 -> 5.074298232 | Y27: =($H$17*('most recent fuel'!$G28/1000)+$M$17*('most recent fuel'!$I28/1000))/2000 -> 5.074298232 | Z27: =($H$17*('most recent fuel'!$G28/1000)+$M$17*('most recent fuel'!$I28/1000))/2000 -> 5.074298232 | AA27: =($H$20*('most recent fuel'!$G28/1000)+$M$20*('most recent fuel'!$I28/1000))/2000 -> 0.1733718563
C28: turbines have lower emissions than engines for same fuel - natural gas may be needed to represent propane turbines | P28: Wartsila 1 | R28: 7 | S28: LPG | T28: engine | U28: =($E$14*('most recent fuel'!$K29/1000)+$K$14*('most recent fuel'!$M29/1000))/2000 -> 354.5759294 | V28: =($E$15*('most recent fuel'!$K29/1000)+$K$15*('most recent fuel'!$M29/1000))/2000 -> 329.0668698 | W28: =($E$16*('most recent fuel'!$K29/1000)+$K$16*('most recent fuel'!$M29/1000))/2000 -> 0.8928170885 | X28: =($E$17*('most recent fuel'!$K29/1000)+$K$17*('most recent fuel'!$M29/1000))/2000 -> 12.75452984 | Y28: =($E$18*('most recent fuel'!$K29/1000)+$K$17*('most recent fuel'!$M29/1000))/2000 -> 12.75452984 | Z28: =($E$19*('most recent fuel'!$K29/1000)+$K$17*('most recent fuel'!$M29/1000))/2000 -> 12.75452984 | AA28: =($E$20*('most recent fuel'!$K29/1000)+$K$20*('most recent fuel'!$M29/1000))/2000 -> 211.7251953
C29: emission factors for propane are on same scale as diesel engine - higher than turbine. Close to scale for engines, too high for turbines | P29: Wartsila 2 | R29: 7 | S29: LPG | T29: engine | U29: =($E$14*('most recent fuel'!$K30/1000)+$K$14*('most recent fuel'!$M30/1000))/2000 -> 351.4075206 | V29: =($E$15*('most recent fuel'!$K30/1000)+$K$15*('most recent fuel'!$M30/1000))/2000 -> 326.126404 | W29: =($E$16*('most recent fuel'!$K30/1000)+$K$16*('most recent fuel'!$M30/1000))/2000 -> 0.8848390807 | X29: =($E$17*('most recent fuel'!$K30/1000)+$K$17*('most recent fuel'!$M30/1000))/2000 -> 12.6405583 | Y29: =($E$18*('most recent fuel'!$K30/1000)+$K$17*('most recent fuel'!$M30/1000))/2000 -> 12.6405583 | Z29: =($E$19*('most recent fuel'!$K30/1000)+$K$17*('most recent fuel'!$M30/1000))/2000 -> 12.6405583 | AA29: =($E$20*('most recent fuel'!$K30/1000)+$K$20*('most recent fuel'!$M30/1000))/2000 -> 209.8332677
B30: =1/36 -> 0.02777777778 | C30: of VOC are crankcase/slip emissions | P30: Wartsila 3 | R30: 7 | S30: LPG | T30: engine | U30: =($E$14*('most recent fuel'!$K31/1000)+$K$14*('most recent fuel'!$M31/1000))/2000 -> 322.3193944 | V30: =($E$15*('most recent fuel'!$K31/1000)+$K$15*('most recent fuel'!$M31/1000))/2000 -> 299.1309487 | W30: =($E$16*('most recent fuel'!$K31/1000)+$K$16*('most recent fuel'!$M31/1000))/2000 -> 0.8115955974 | X30: =($E$17*('most recent fuel'!$K31/1000)+$K$17*('most recent fuel'!$M31/1000))/2000 -> 11.59422282 | Y30: =($E$18*('most recent fuel'!$K31/1000)+$K$17*('most recent fuel'!$M31/1000))/2000 -> 11.59422282 | Z30: =($E$19*('most recent fuel'!$K31/1000)+$K$17*('most recent fuel'!$M31/1000))/2000 -> 11.59422282 | AA30: =($E$20*('most recent fuel'!$K31/1000)+$K$20*('most recent fuel'!$M31/1000))/2000 -> 192.4640988
B31: =15/1000000*100 -> 0.0015 | C31: % ULSD sulfur content (maximum) | P31: Wartsila 4 | R31: 9 | S31: LPG & diesel
P32: Wartsila 5 | R32: 9 | S32: LPG & diesel
B33: *PM=PM10=PM2.5 for several sets of emission factors | P33: Wartsila 6 | R33: 9 | S33: LPG & diesel
P34: Wartsila 7 | R34: 9 | S34: LPG & diesel
B35: 600 | C35: hp | D35: =CONVERT(B35,"HP","W")/1000000 -> 0.4474199229 | E35: MW | P35: 17 | Q35: St. Croix | R35: 21.9 | S35: LPG & diesel | T35: turbine | U35: =($H$14*('most recent fuel'!$G36/1000)+$M$14*('most recent fuel'!$I36/1000))/2000 -> 137.8003366 | V35: =($H$15*('most recent fuel'!$G36/1000)+$M$15*('most recent fuel'!$I36/1000))/2000 -> 21.4343342 | W35: =($H$16*('most recent fuel'!$G36/1000)+$M$16*('most recent fuel'!$I36/1000))/2000 -> 0.9748112449 | X35: =($H$17*('most recent fuel'!$G36/1000)+$M$17*('most recent fuel'!$I36/1000))/2000 -> 2.458047502 | Y35: =($H$17*('most recent fuel'!$G36/1000)+$M$17*('most recent fuel'!$I36/1000))/2000 -> 2.458047502 | Z35: =($H$17*('most recent fuel'!$G36/1000)+$M$17*('most recent fuel'!$I36/1000))/2000 -> 2.458047502 | AA35: =($H$20*('most recent fuel'!$G36/1000)+$M$20*('most recent fuel'!$I36/1000))/2000 -> 0.569255681
C36: All engines are larger than 600 hp = 0.45 MW | P36: 19 | R36: 24.5 | S36: diesel | T36: turbine | U36: =($H$14*('most recent fuel'!$G37/1000)+$M$14*('most recent fuel'!$I37/1000))/2000 -> 76.59115218 | V36: =($H$15*('most recent fuel'!$G37/1000)+$M$15*('most recent fuel'!$I37/1000))/2000 -> 0.2872168207 | W36: =($H$16*('most recent fuel'!$G37/1000)+$M$16*('most recent fuel'!$I37/1000))/2000 -> 0.1318586313 | X36: =($H$17*('most recent fuel'!$G37/1000)+$M$17*('most recent fuel'!$I37/1000))/2000 -> 1.044424802 | Y36: =($H$17*('most recent fuel'!$G37/1000)+$M$17*('most recent fuel'!$I37/1000))/2000 -> 1.044424802 | Z36: =($H$17*('most recent fuel'!$G37/1000)+$M$17*('most recent fuel'!$I37/1000))/2000 -> 1.044424802 | AA36: =($H$20*('most recent fuel'!$G37/1000)+$M$20*('most recent fuel'!$I37/1000))/2000 -> 0.03568451408
B37: 1 | C37: MW = | D37: =CONVERT(1,"J","BTU")*3600 -> 3.412141633 | E37: MMBtu/hr | P37: 20 | R37: 24.5 | S37: LPG & diesel | T37: turbine | U37: =($H$14*('most recent fuel'!$G38/1000)+$M$14*('most recent fuel'!$I38/1000))/2000 -> 555.9825835 | V37: =($H$15*('most recent fuel'!$G38/1000)+$M$15*('most recent fuel'!$I38/1000))/2000 -> 106.3758386 | W37: =($H$16*('most recent fuel'!$G38/1000)+$M$16*('most recent fuel'!$I38/1000))/2000 -> 4.634578847 | X37: =($H$17*('most recent fuel'!$G38/1000)+$M$17*('most recent fuel'!$I38/1000))/2000 -> 10.4681201 | Y37: =($H$17*('most recent fuel'!$G38/1000)+$M$17*('most recent fuel'!$I38/1000))/2000 -> 10.4681201 | Z37: =($H$17*('most recent fuel'!$G38/1000)+$M$17*('most recent fuel'!$I38/1000))/2000 -> 10.4681201 | AA37: =($H$20*('most recent fuel'!$G38/1000)+$M$20*('most recent fuel'!$I38/1000))/2000 -> 2.777132298
P38: Aggreko | R38: =18*1.1 -> 19.8 | S38: LPG | T38: engine | U38: =($E$14*('most recent fuel'!$K39/1000)+$K$14*('most recent fuel'!$M39/1000))/2000 -> 1127.535356 | V38: =($E$15*('most recent fuel'!$K39/1000)+$K$15*('most recent fuel'!$M39/1000))/2000 -> 1046.417704 | W38: =($E$16*('most recent fuel'!$K39/1000)+$K$16*('most recent fuel'!$M39/1000))/2000 -> 2.839117802 | X38: =($E$17*('most recent fuel'!$K39/1000)+$K$17*('most recent fuel'!$M39/1000))/2000 -> 40.55882574 | Y38: =($E$18*('most recent fuel'!$K39/1000)+$K$17*('most recent fuel'!$M39/1000))/2000 -> 40.55882574 | Z38: =($E$19*('most recent fuel'!$K39/1000)+$K$17*('most recent fuel'!$M39/1000))/2000 -> 40.55882574 | AA38: =($E$20*('most recent fuel'!$K39/1000)+$K$20*('most recent fuel'!$M39/1000))/2000 -> 673.2765072
B39: convert from lb/MMBtu to lb/1000 gal -> multiply by fuel heat content
U40: Totals
Q41: American Samoa | U41: =U3 -> 1251.847194 | V41: =V3 -> 4.694426977 | W41: 2.155168749 | X41: 17.07064355 | Y41: 17.07064355 | Z41: 17.07064355 | AA41: 0.5832469881
Q42: Northern Mariana Islands | U42: =SUM(U5:U7) -> 109.757648 | V42: =SUM(V5:V7) -> 0.41159118 | W42: 0.188957769 | X42: 1.4966952 | Y42: 1.4966952 | Z42: 1.4966952 | AA42: 0.051137086
Q43: Guam | U43: =SUM(U9:U22) -> 336.4616043 | V43: =SUM(V9:V22) -> 62.62867825 | W43: 0.2867609742 | X43: 5.932886418 | Y43: 5.024831352 | Z43: 4.900339931 | AA43: 6.045138133
Q44: Virgin Islands | U44: =SUM(U24:U38) -> 4291.868246 | V44: =SUM(V24:V38) -> 2226.720445 | W44: 16.79152912 | X44: 112.708698 | Y44: 112.708698 | Z44: 112.708698 | AA44: 1293.557093

Sheet by territory -->

Sheet American Samoa
D2: Unit Details | H2: Fuel Use | P2: NOx | Q2: CO | R2: SO2 | S2: PM* | T2: PM10 | U2: PM2.5 | V2: VOC/TOC
D3: MW | H3: turbine | L3: engine generator
D4: 45 | E4: diesel | F4: turbine | H4: ='most recent fuel'!G3 -> 20322194.71 | I4: gallons ULSD | P4: =emissions!U3 -> 1251.847194 | Q4: =emissions!V3 -> 4.694426977 | R4: =emissions!W3 -> 2.155168749 | S4: =emissions!X3 -> 17.07064355 | T4: =emissions!Y3 -> 17.07064355 | U4: =emissions!Z3 -> 17.07064355 | V4: =emissions!AA3 -> 0.5832469881
D5: 5 | E5: PV
P6: =SUM(P4:P5) -> 1251.847194 | Q6: 4.694426977 | R6: 2.155168749 | S6: 17.07064355 | T6: 17.07064355 | U6: 17.07064355 | V6: 0.5832469881 | W6: Total
D7: Fuel calculation assumptions = "most recent fuel" worksheet
D8: Emission factors and emission assumptions = "emissions" worksheet
D9: Fuel use is estiamted based on heat rate of turbines close to the stated rating (from Virgin Islands) and electricity production

Sheet N. Mariana Islands
D2: Unit Details | H2: Fuel Use | J2: NOx | K2: CO | L2: SO2 | M2: PM* | N2: PM10 | O2: PM2.5 | P2: VOC/TOC
D3: MW | H3: turbine
C4: Saipan | D4: 34.5 | E4: diesel/fuel oil | F4: turbine | H4: ='most recent fuel'!G6 -> 1623579 | I4: gallons ULSD | J4: =emissions!U5 -> 100.0124664 | K4: =emissions!V5 -> 0.375046749 | L4: =emissions!W5 -> 0.1721805529 | M4: =emissions!X5 -> 1.36380636 | N4: =emissions!Y5 -> 1.36380636 | O4: =emissions!Z5 -> 1.36380636 | P4: =emissions!AA5 -> 0.0465967173
C5: Tinian | D5: 3 | E5: diesel/fuel oil | F5: turbine | H5: ='most recent fuel'!G7 -> 92815 | I5: gallons ULSD | J5: =emissions!U6 -> 5.717404 | K5: =emissions!V6 -> 0.021440265 | L5: =emissions!W6 -> 0.00984303075 | M5: =emissions!X6 -> 0.0779646 | N5: =emissions!Y6 -> 0.0779646 | O5: =emissions!Z6 -> 0.0779646 | P5: =emissions!AA6 -> 0.0026637905
C6: Rota | D6: 2 | E6: diesel/fuel oil | F6: turbine | H6: ='most recent fuel'!G8 -> 65386 | I6: gallons ULSD | J6: =emissions!U7 -> 4.0277776 | K6: =emissions!V7 -> 0.015104166 | L6: =emissions!W7 -> 0.0069341853 | M6: =emissions!X7 -> 0.05492424 | N6: =emissions!Y7 -> 0.05492424 | O6: =emissions!Z7 -> 0.05492424 | P6: =emissions!AA7 -> 0.0018765782
J7: =SUM(J4:J6) -> 109.757648 | K7: =SUM(K4:K6) -> 0.41159118 | L7: 0.188957769 | M7: 1.4966952 | N7: 1.4966952 | O7: 1.4966952 | P7: 0.051137086 | Q7: Total
D8: Fuel calculation assumptions = "most recent fuel" worksheet
D9: Emission factors and emission assumptions = "emissions" worksheet

Sheet Guam
D2: Unit Details | H2: Fuel Use | P2: NOx | Q2: CO | R2: SO2 | S2: PM* | T2: PM10 | U2: PM2.5 | V2: VOC/TOC
D3: MW | H3: turbine | L3: engine generator
B4: Cabras 1 | C4: base | D4: 66 | E4: diesel/fuel oil | F4: turbine | H4: ='most recent fuel'!G10 -> 1670.75 | I4: gallons ULSD | J4: ='most recent fuel'!I10 -> 545881.36 | K4: gallons fuel oil | P4: =emissions!U9 -> 33.72920998 | Q4: =emissions!V9 -> 0.1264845374 | R4: =emissions!W9 -> 0.05806790127 | S4: =emissions!X9 -> 0.4599437724 | T4: =emissions!Y9 -> 0.4599437724 | U4: =emissions!Z9 -> 0.4599437724 | V4: =emissions!AA9 -> 0.01571474556
B5: Cabras 2 | C5: base | D5: 66 | E5: diesel/fuel oil | F5: turbine | H5: ='most recent fuel'!G11 -> 1738.95 | I5: gallons ULSD | J5: ='most recent fuel'!I11 -> 267047.55 | K5: gallons fuel oil | P5: =emissions!U10 -> 16.5572484 | Q5: =emissions!V10 -> 0.0620896815 | R5: =emissions!W10 -> 0.02850480832 | S5: =emissions!X10 -> 0.22578066 | T5: =emissions!Y10 -> 0.22578066 | U5: =emissions!Z10 -> 0.22578066 | V5: =emissions!AA10 -> 0.00771417255
B6: MEC 8 (IPP) | C6: base | D6: 44.2 | E6: diesel | F6: not listed | H6: ='most recent fuel'!G12 -> 0 | I6: gallons ULSD | L6: ='most recent fuel'!K12 -> 437455.05 | M6: gallons ULSD | P6: =emissions!U11 -> 97.9899312 | Q6: =emissions!V11 -> 26.02857547 | R6: =emissions!W11 -> 0.04639210805 | S6: =emissions!X11 -> 1.898554917 | T6: =emissions!Y11 -> 1.518843934 | U6: =emissions!Z11 -> 1.466786783 | V6: =emissions!AA11 -> 2.507929802
B7: MEC 9 (IPP) | C7: base | D7: 44.2 | E7: diesel | F7: not listed | H7: ='most recent fuel'!G13 -> 0 | I7: gallons ULSD | L7: ='most recent fuel'!K13 -> 443401.94 | M7: gallons ULSD | P7: =emissions!U12 -> 99.32203456 | Q7: =emissions!V12 -> 26.38241543 | R7: =emissions!W12 -> 0.04702277574 | S7: =emissions!X12 -> 1.92436442 | T7: =emissions!Y12 -> 1.539491536 | U7: =emissions!Z12 -> 1.486726705 | V7: =emissions!AA12 -> 2.542023322
B8: MDI Dsl | C8: peaking | D8: 10.6 | E8: diesel | F8: engine | L8: ='most recent fuel'!K14 -> 10569.4 | M8: gallons ULSD | P8: =emissions!U13 -> 2.3675456 | Q8: =emissions!V13 -> 0.6288793 | R8: =emissions!W13 -> 0.00112088487 | S8: =emissions!X13 -> 0.045871196 | T8: =emissions!Y13 -> 0.0366969568 | U8: =emissions!Z13 -> 0.0354391982 | V8: =emissions!AA13 -> 0.0605943702
B9: Dededo CT #1 | C9: peaking | D9: 23 | E9: diesel | F9: turbine | H9: ='most recent fuel'!G15 -> 153817.51 | I9: gallons ULSD | P9: =emissions!U14 -> 9.475158616 | Q9: =emissions!V14 -> 0.03553184481 | R9: =emissions!W14 -> 0.01631234694 | S9: =emissions!X14 -> 0.1292067084 | T9: =emissions!Y14 -> 0.1292067084 | U9: =emissions!Z14 -> 0.1292067084 | V9: =emissions!AA14 -> 0.004414562537
B10: Dededo CT #2 | C10: peaking | D10: 22 | E10: diesel | F10: turbine | H10: ='most recent fuel'!G16 -> 152640.32 | I10: gallons ULSD | P10: =emissions!U15 -> 9.402643712 | Q10: =emissions!V15 -> 0.03525991392 | R10: =emissions!W15 -> 0.01618750594 | S10: =emissions!X15 -> 0.1282178688 | T10: =emissions!Y15 -> 0.1282178688 | U10: =emissions!Z15 -> 0.1282178688 | V10: =emissions!AA15 -> 0.004380777184
B11: Macheche CT | C11: peaking | D11: 22 | E11: diesel | F11: turbine | H11: ='most recent fuel'!G17 -> 105297.81 | I11: gallons ULSD | P11: =emissions!U16 -> 6.486345096 | Q11: =emissions!V16 -> 0.02432379411 | R11: =emissions!W16 -> 0.01116683275 | S11: =emissions!X16 -> 0.0884501604 | T11: =emissions!Y16 -> 0.0884501604 | U11: =emissions!Z16 -> 0.0884501604 | V11: =emissions!AA16 -> 0.003022047147
B12: Yigo CT | C12: peaking | D12: 22 | E12: diesel | F12: turbine | H12: ='most recent fuel'!G18 -> 87926.31 | I12: gallons ULSD | P12: =emissions!U17 -> 5.416260696 | Q12: =emissions!V17 -> 0.02031097761 | R12: =emissions!W17 -> 0.009324585176 | S12: =emissions!X17 -> 0.0738581004 | T12: =emissions!Y17 -> 0.0738581004 | U12: =emissions!Z17 -> 0.0738581004 | V12: =emissions!AA17 -> 0.002523485097
B13: Talofofo | C13: peaking | D13: 8.8 | E13: diesel | F13: engine | L13: ='most recent fuel'!K19 -> 10473.18 | M13: gallons ULSD | P13: =emissions!U18 -> 2.34599232 | Q13: =emissions!V18 -> 0.62315421 | R13: =emissions!W18 -> 0.001110680739 | S13: =emissions!X18 -> 0.0454536012 | T13: =emissions!Y18 -> 0.03636288096 | U13: =emissions!Z18 -> 0.03511657254 | V13: =emissions!AA18 -> 0.06004274094
B14: Yigo Diesels | C14: peaking | D14: 40 | E14: diesel | F14: engine | L14: ='most recent fuel'!K20 -> 110480.53 | M14: gallons ULSD | P14: =emissions!U19 -> 24.74763872 | Q14: =emissions!V19 -> 6.573591535 | R14: =emissions!W19 -> 0.01171646021 | S14: =emissions!X19 -> 0.4794855002 | T14: =emissions!Y19 -> 0.3835884002 | U14: =emissions!Z19 -> 0.3704412171 | V14: =emissions!AA19 -> 0.6333848785
B15: Tenjo | C15: peaking | D15: =4.4*6 -> 26.4 | E15: diesel | F15: engine | L15: ='most recent fuel'!K21 -> 28184.66 | M15: gallons ULSD | P15: =emissions!U20 -> 6.31336384 | Q15: =emissions!V20 -> 1.67698727 | R15: =emissions!W20 -> 0.002988983193 | S15: =emissions!X20 -> 0.1223214244 | T15: =emissions!Y20 -> 0.09785713952 | U15: =emissions!Z20 -> 0.09450316498 | V15: =emissions!AA20 -> 0.1615826558
B16: TEMES (IPP) (Piti 7) | C16: peaking | D16: 40 | E16: diesel | F16: turbine | H16: ='most recent fuel'!G22 -> 341849.78 | I16: gallons ULSD | P16: =emissions!U21 -> 21.05794645 | Q16: =emissions!V21 -> 0.07896729918 | R16: =emissions!W21 -> 0.03625316917 | S16: =emissions!X21 -> 0.2871538152 | T16: =emissions!Y21 -> 0.2871538152 | U16: =emissions!Z21 -> 0.2871538152 | V16: =emissions!AA21 -> 0.009811088686
C17: other | F17: not listed | H17: ='most recent fuel'!G23 -> 0.37 | I17: gallons ULSD | L17: ='most recent fuel'!K23 -> 5581.63 | M17: gallons ULSD | P17: =emissions!U22 -> 1.25028512 | Q17: =emissions!V22 -> 0.332106985 | R17: =emissions!W22 -> 0.0005919318615 | S17: =emissions!X22 -> 0.0242242742 | T17: =emissions!Y22 -> 0.01937941936 | U17: =emissions!Z22 -> 0.01871520539 | V17: =emissions!AA22 -> 0.03199948479
P18: =SUM(P4:P17) -> 336.4616043 | Q18: =SUM(Q4:Q17) -> 62.62867825 | R18: 0.2867609742 | S18: 5.932886418 | T18: 5.024831352 | U18: 4.900339931 | V18: 6.045138133 | W18: Total
D19: Fuel calculation assumptions = "most recent fuel" worksheet
D20: Emission factors and emission assumptions = "emissions" worksheet

Sheet Virgin Islands
D2: Unit Details | H2: Fuel Use | P2: NOx | Q2: CO | R2: SO2 | S2: PM* | T2: PM10 | U2: PM2.5 | V2: VOC/TOC
D3: MW | H3: turbine | L3: engine generator
B4: 14 | C4: St. Thomas | D4: 15.1 | E4: diesel | F4: turbine | H4: ='most recent fuel'!G25 -> 27639.85714 | I4: gallons ULSD | P4: =emissions!U24 -> 1.7026152 | Q4: =emissions!V24 -> 0.006384807 | R4: =emissions!W24 -> 0.00293120685 | S4: =emissions!X24 -> 0.02321748 | T4: =emissions!Y24 -> 0.02321748 | U4: =emissions!Z24 -> 0.02321748 | V4: =emissions!AA24 -> 0.0007932639
B5: 15 | D5: 26.6 | E5: LPG & diesel | F5: turbine | H5: ='most recent fuel'!G26 -> 751766.34 | I5: gallons ULSD | J5: ='most recent fuel'!I26 -> 16553984.1 | K5: gallons LPG | P5: =emissions!U25 -> 413.6748218 | Q5: =emissions!V25 -> 94.31119943 | R5: =emissions!W25 -> 3.982988732 | S5: =emissions!X25 -> 8.20840779 | T5: =emissions!Y25 -> 8.20840779 | U5: =emissions!Z25 -> 8.20840779 | V5: =emissions!AA25 -> 2.432415169
B6: 23 | D6: 42 | E6: diesel | F6: turbine | H6: ='most recent fuel'!G27 -> 9385768.389 | I6: gallons ULSD | P6: =emissions!U26 -> 578.1633327 | Q6: =emissions!V26 -> 2.168112498 | R6: =emissions!W26 -> 0.9953607376 | S6: =emissions!X26 -> 7.884045446 | T6: =emissions!Y26 -> 7.884045446 | U6: =emissions!Z26 -> 7.884045446 | V6: =emissions!AA26 -> 0.2693715528
B7: 27 | D7: 26 | E7: diesel | F7: turbine | H7: ='most recent fuel'!G28 -> 6040831.229 | I7: gallons ULSD | P7: =emissions!U27 -> 372.1152037 | Q7: =emissions!V27 -> 1.395432014 | R7: =emissions!W27 -> 0.6406301518 | S7: =emissions!X27 -> 5.074298232 | T7: =emissions!Y27 -> 5.074298232 | U7: =emissions!Z27 -> 5.074298232 | V7: =emissions!AA27 -> 0.1733718563
B8: Wartsila 1 | D8: 7 | E8: LPG | F8: engine | N8: ='most recent fuel'!M29 -> 5101811.934 | O8: gallons LPG | P8: =emissions!U28 -> 354.5759294 | Q8: =emissions!V28 -> 329.0668698 | R8: =emissions!W28 -> 0.8928170885 | S8: =emissions!X28 -> 12.75452984 | T8: =emissions!Y28 -> 12.75452984 | U8: =emissions!Z28 -> 12.75452984 | V8: =emissions!AA28 -> 211.7251953
B9: Wartsila 2 | D9: 7 | E9: LPG | F9: engine | N9: ='most recent fuel'!M30 -> 5056223.318 | O9: gallons LPG | P9: =emissions!U29 -> 351.4075206 | Q9: =emissions!V29 -> 326.126404 | R9: =emissions!W29 -> 0.8848390807 | S9: =emissions!X29 -> 12.6405583 | T9: =emissions!Y29 -> 12.6405583 | U9: =emissions!Z29 -> 12.6405583 | V9: =emissions!AA29 -> 209.8332677
B10: Wartsila 3 | D10: 7 | E10: LPG | F10: engine | N10: ='most recent fuel'!M31 -> 4637689.128 | O10: gallons LPG | P10: =emissions!U30 -> 322.3193944 | Q10: =emissions!V30 -> 299.1309487 | R10: =emissions!W30 -> 0.8115955974 | S10: =emissions!X30 -> 11.59422282 | T10: =emissions!Y30 -> 11.59422282 | U10: =emissions!Z30 -> 11.59422282 | V10: =emissions!AA30 -> 192.4640988
B11: Wartsila 4 | D11: 9 | E11: LPG & diesel | F11: engine | P11: =emissions!U31 -> 0 | Q11: =emissions!V31 -> 0 | R11: =emissions!W31 -> 0 | S11: =emissions!X31 -> 0 | T11: =emissions!Y31 -> 0 | U11: =emissions!Z31 -> 0 | V11: =emissions!AA31 -> 0
B12: Wartsila 5 | D12: 9 | E12: LPG & diesel | F12: engine | P12: =emissions!U32 -> 0 | Q12: =emissions!V32 -> 0 | R12: =emissions!W32 -> 0 | S12: =emissions!X32 -> 0 | T12: =emissions!Y32 -> 0 | U12: =emissions!Z32 -> 0 | V12: =emissions!AA32 -> 0
B13: Wartsila 6 | D13: 9 | E13: LPG & diesel | F13: engine | P13: =emissions!U33 -> 0 | Q13: =emissions!V33 -> 0 | R13: =emissions!W33 -> 0 | S13: =emissions!X33 -> 0 | T13: =emissions!Y33 -> 0 | U13: =emissions!Z33 -> 0 | V13: =emissions!AA33 -> 0
B14: Wartsila 7 | D14: 9 | E14: LPG & diesel | F14: engine | P14: =emissions!U34 -> 0 | Q14: =emissions!V34 -> 0 | R14: =emissions!W34 -> 0 | S14: =emissions!X34 -> 0 | T14: =emissions!Y34 -> 0 | U14: =emissions!Z34 -> 0 | V14: =emissions!AA34 -> 0
B15: 17 | C15: St. Croix | D15: 21.9 | E15: LPG & diesel | F15: turbine | H15: ='most recent fuel'!G36 -> 892182.2071 | I15: gallons ULSD | J15: ='most recent fuel'!I36 -> 3732962.898 | K15: gallons LPG | P15: =emissions!U35 -> 137.8003366 | Q15: =emissions!V35 -> 21.4343342 | R15: =emissions!W35 -> 0.9748112449 | S15: =emissions!X35 -> 2.458047502 | T15: =emissions!Y35 -> 2.458047502 | U15: =emissions!Z35 -> 2.458047502 | V15: =emissions!AA35 -> 0.569255681
B16: 19 | D16: 24.5 | E16: diesel | F16: turbine | H16: ='most recent fuel'!G37 -> 1243362.86 | I16: gallons ULSD | P16: =emissions!U36 -> 76.59115218 | Q16: =emissions!V36 -> 0.2872168207 | R16: =emissions!W36 -> 0.1318586313 | S16: =emissions!X36 -> 1.044424802 | T16: =emissions!Y36 -> 1.044424802 | U16: =emissions!Z36 -> 1.044424802 | V16: =emissions!AA36 -> 0.03568451408
B17: 20 | D17: 24.5 | E17: LPG & diesel | F17: turbine | H17: ='most recent fuel'!G38 -> 2320605.53 | I17: gallons ULSD | J17: ='most recent fuel'!I38 -> 18611809.79 | K17: gallons LPG | P17: =emissions!U37 -> 555.9825835 | Q17: =emissions!V37 -> 106.3758386 | R17: =emissions!W37 -> 4.634578847 | S17: =emissions!X37 -> 10.4681201 | T17: =emissions!Y37 -> 10.4681201 | U17: =emissions!Z37 -> 10.4681201 | V17: =emissions!AA37 -> 2.777132298
B18: Aggreko | D18: 19.8 | E18: LPG | F18: engine | N18: ='most recent fuel'!M39 -> 16223530.3 | O18: gallons LPG | P18: =emissions!U38 -> 1127.535356 | Q18: =emissions!V38 -> 1046.417704 | R18: =emissions!W38 -> 2.839117802 | S18: =emissions!X38 -> 40.55882574 | T18: =emissions!Y38 -> 40.55882574 | U18: =emissions!Z38 -> 40.55882574 | V18: =emissions!AA38 -> 673.2765072
P19: =SUM(P4:P18) -> 4291.868246 | Q19: =SUM(Q4:Q18) -> 2226.720445 | R19: 16.79152912 | S19: 112.708698 | T19: 112.708698 | U19: 112.708698 | V19: 1293.557093 | W19: Total
D20: Fuel calculation assumptions = "most recent fuel" worksheet
D21: Emission factors and emission assumptions = "emissions" worksheet
D22: 9 MW engines are new, no fuel use or emissions recorded yet
